fUSD/lending_fUSD_20240529
["ID","MTS","AMOUNT","RATE_DAILY","PERIOD"]
[328183704,1717020633081,-173.0,0.00025,2]
[328183705,1717020633091,-166.66666667,0.0002504,2]
[328183706,1717020633101,-335.22151874,0.00025137,2]
[328183707,1717020633110,-335.22151874,0.00025148,2]
[328183708,1717020633120,-154.45801998,0.00025177,2]
[328183709,1717020633130,-1000.0,0.00025205,2]
[328183710,1717020633139,-1000.0,0.00025208,2]
[328183711,1717020633148,-182.98503449,0.00025239,2]
[328183712,1717020633158,-165.40585946,0.00025255,2]
[328183713,1717020633168,-152.94404478,0.00025304,2]
[328183714,1717020633177,-335.22151874,0.00025331,2]
[328183715,1717020633187,-178.36678852,0.00025382,2]
[328183716,1717020633196,-152.94404478,0.00025425,2]
[328183717,1717020633206,-264.60969472,0.00025491,2]
[328183718,1717020633217,-5158.49173335,0.00025496,2]
[328183719,1717020633226,-151.52872097,0.00025504,2]
[328183720,1717020633236,-159.25974205,0.00025507,2]
[328183721,1717020633245,-165.40585946,0.0002552,2]
[328183722,1717020633255,-955.56684863,0.00025554,2]
[328183723,1717020633267,-151.16696915,0.00025615,2]
[328183724,1717020633276,-335.22151874,0.00025679,2]
[328183725,1717020633286,-180.0,0.00025707,2]
[328183726,1717020633296,-151.52872097,0.00025736,2]
[328183727,1717020633305,-166.29644051,0.00025777,2]
[328183728,1717020633314,-5158.49173335,0.00025799,2]
[328183729,1717020633324,-150.0,0.00025846,2]
[328183730,1717020633333,-264.60969472,0.00025859,2]
[328183731,1717020633343,-166.29644053,0.00025865,2]
[328183732,1717020633353,-218.04,0.0002589,2]
[328183733,1717020633362,-174.0,0.0002589,2]
[328183734,1717020633460,-165.40585946,0.00025905,2]
[328183735,1717020633469,-151.52872097,0.00025915,2]
[328183736,1717020633479,-264.60969472,0.00025929,2]
[328183737,1717020633490,-23473.09955689,0.00026,5]
[328183738,1717020633501,-154.45801998,0.00026025,2]
[328183739,1717020633512,-871.25,0.00026028,2]
[328183740,1717020633522,-416.3,0.00026028,2]
[328183741,1717020633532,-871.25,0.00026028,2]
[328183742,1717020633541,-830.8,0.00026028,2]
[328183743,1717020633552,-871.25,0.00026028,2]
[328183744,1717020633562,-505.07,0.00026028,2]
[328183745,1717020633571,-479.11,0.00026079,2]
[328183746,1717020633580,-150.0,0.00026079,2]
[328183747,1717020633590,-335.22151874,0.0002608,2]
[328183748,1717020633600,-264.60969472,0.00026098,2]
[328183749,1717020633611,-4823.64,0.00026101,2]
[328183750,1717020633620,-20075.26153984,0.00026106,2]
[328183751,1717020633631,-154.45801998,0.00026132,2]
[328183752,1717020633640,-165.40585946,0.00026142,2]
[328183753,1717020633649,-165.40585946,0.00026159,2]
[328183754,1717020633659,-590.84,0.00026166,2]
[328183755,1717020633668,-335.22151874,0.00026167,2]
[328183756,1717020633678,-154.45801998,0.00026194,2]
[328183757,1717020633688,-37303.4845,0.00026201,2]
[328183758,1717020633699,-180.37209279,0.00026212,2]
[328183759,1717020633710,-162.56196144,0.00026214,2]
[328183760,1717020633719,-335.22151874,0.00026262,2]
[328183761,1717020633728,-264.60969472,0.00026271,2]
[328183762,1717020633738,-54807.71,0.00026301,2]
[328183763,1717020633750,-335.22151874,0.00026303,2]
[328183764,1717020633759,-5158.49173335,0.00026352,2]
[328183765,1717020633769,-155.0,0.00026358,2]
[328183766,1717020633778,-927.63905296,0.00026358,2]
[328183767,1717020633788,-151.52872097,0.00026363,2]
[328183768,1717020633798,-155.21531025,0.00026391,2]
[328183769,1717020633807,-220.66423378,0.00026451,2]
[328183770,1717020633816,-160.0,0.00026515,2]
[328183771,1717020633827,-157.41847394,0.00026563,2]
[328183772,1717020633836,-335.22151874,0.00026573,2]
[328183773,1717020633846,-154.58102766,0.00026577,2]
[328183774,1717020633858,-155.95854081,0.00026627,2]
[328183775,1717020633868,-162.56196144,0.00026631,2]
[328183776,1717020633877,-162.56196144,0.00026636,2]
[328183777,1717020633887,-2257.11158058,0.00026636,2]
[328183778,1717020633909,-2901.38015277,0.00026636,2]
[328183779,1717020633918,-898.30014992,0.0002665,2]
[328183780,1717020633929,-9202.32106482,0.0002665,2]
[328183781,1717020633945,-6828.9003,0.0002665,2]
[328183782,1717020633956,-3145.7400251,0.0002665,2]
[328183783,1717020633966,-264.60969472,0.00026673,2]
[328183784,1717020633975,-1000.0,0.00026698,2]
[328183785,1717020633986,-1645.55280738,0.000267,2]
[328183786,1717020633998,-3512.93892597,0.000267,2]
[328183787,1717020634007,-154.58102766,0.00026704,2]
[328183788,1717020634019,-200.0,0.00026709,2]
[328183789,1717020634029,-342.90975169,0.0002671,2]
[328183790,1717020634038,-155.21531025,0.00026758,2]
[328183791,1717020634048,-18193.47633773,0.00026798,2]
[328183792,1717020634072,-3415.57845701,0.00026798,2]
[328183793,1717020634092,-10612.82063427,0.00026798,2]
[328183794,1717020634133,-697.73437412,0.00026798,2]
[328183795,1717020634153,-105845.33762932,0.00026798,2]
[328183796,1717020634174,-17243.63708399,0.00026798,2]
[328183797,1717020634193,-3002.17711625,0.00026798,2]
[328183798,1717020634213,-389.84087267,0.00026798,2]
[328183799,1717020634233,-12720.96378447,0.00026798,2]
[328183800,1717020634255,-2999.39625018,0.00026798,2]
[328183801,1717020634295,-1076.81030007,0.00026798,2]
[328183802,1717020634314,-23629.93306476,0.00026798,2]
[328183803,1717020634333,-551.24148495,0.00026798,2]
[328183804,1717020634352,-289.39426598,0.00026798,2]
[328183805,1717020634369,-711.72882134,0.00026798,2]
[328183806,1717020634386,-483.71393226,0.00026798,2]
[328183807,1717020634404,-326.91429722,0.00026798,2]
[328183808,1717020634421,-800.6658413,0.00026798,2]
[328183811,1717020638226,-2390.55985511,0.00026798,2]
[328183812,1717020638238,-529.03743777,0.00026798,2]
[328183813,1717020638251,-723.27235468,0.00026798,2]
[328183814,1717020638262,-3730.36434643,0.00026798,2]
[328183815,1717020638273,-8449.0,0.00026798,2]
[328183816,1717020638284,-3385.96953395,0.00026798,2]
[328183817,1717020638296,-5731.89280292,0.00026798,2]
[328183818,1717020638307,-5897.93599999,0.00026798,2]
[328183819,1717020638332,-3304.7964,0.00026798,2]
[328183820,1717020638343,-996.7313497,0.00026798,2]
[328183821,1717020638357,-728.96077156,0.00026798,2]
[328183822,1717020638367,-1183.37776132,0.0002681,2]
[328183823,1717020638376,-227.96097267,0.00026888,2]
[328183824,1717020638386,-1069.64544399,0.00026889,2]
[328183825,1717020638444,-1140.80910589,0.00026889,2]
[328183826,1717020638456,-2770.88545012,0.00026889,2]
[328183827,1717020638466,-176.54539458,0.00026896,2]
[328183828,1717020638476,-155.0,0.00026896,2]
[328183829,1717020638486,-155.39810256,0.00026896,2]
[328183830,1717020638495,-155.0,0.00026896,2]
[328183831,1717020638505,-155.0,0.00026896,2]
[328183832,1717020638515,-3158.94887843,0.00026896,2]
[328183833,1717020638525,-155.0,0.00026896,2]
[328183834,1717020638534,-155.66318784,0.00026897,2]
[328183835,1717020638544,-201.00463865,0.00026897,2]
[328183836,1717020638553,-2729.4232973,0.00026897,2]
[328183838,1717020638563,-157.77334761,0.00026897,2]
[328183840,1717020638573,-199.93152663,0.00026897,2]
[328183842,1717020638583,-3300.10952867,0.00026897,2]
[328183844,1717020638592,-1064.16497992,0.00026897,2]
[328183846,1717020638602,-300.85855586,0.00026897,2]
[328183848,1717020638611,-170.39967968,0.00026897,2]
[328183849,1717020638621,-200.71087854,0.00026897,2]
[328183850,1717020638630,-391.85160553,0.00026897,2]
[328183851,1717020638640,-325.92527891,0.00026897,2]
[328183852,1717020638650,-1265.31506066,0.00026897,2]
[328183854,1717020638660,-155.6592756,0.00026897,2]
[328183856,1717020638670,-155.0,0.00026897,2]
[328183857,1717020638679,-528.98539506,0.00026897,2]
[328183858,1717020638689,-155.0,0.00026898,2]
[328183859,1717020638698,-1412.27528136,0.00026898,2]
[328183860,1717020638708,-158.40095705,0.00026898,2]
[328183861,1717020638719,-1893.34035,0.00026898,2]
[328183862,1717020638728,-214.0,0.00026899,2]
[328183863,1717020638737,-346.63871635,0.00026899,2]
[328183864,1717020638747,-500.0,0.00026899,2]
[328183865,1717020638757,-800.0,0.00026899,2]
[328183866,1717020638766,-344.0,0.000269,2]
[328183867,1717020638776,-487.0,0.000269,10]
[328183868,1717020638785,-150.0,0.000269,5]
[328183869,1717020638795,-4814.47,0.00026909,2]
[328183870,1717020638804,-310.93,0.00026921,2]
[328183871,1717020638814,-90.71969584,0.00026989,2]
[328183872,1717020638826,-60.61030416,0.00026989,2]
[328183873,1717020638836,-151.33,0.0002699,2]
[328183874,1717020638846,-227.96097267,0.0002699,2]
[328183875,1717020638855,-1159.87032263,0.00026992,2]
[328183876,1717020638868,-4905.12851997,0.00026992,2]
[328183877,1717020638878,-155.0,0.00026995,2]
[328183878,1717020638888,-155.14783748,0.00026995,2]
[328183879,1717020638898,-257.91446201,0.00026996,2]
[328183880,1717020638907,-405.93422196,0.00026996,2]
[328183881,1717020638917,-221.95474696,0.00026996,2]
[328183882,1717020638929,-49.36525304,0.00026996,2]
[328183883,1717020638939,-234.22233037,0.00026996,2]
[328183884,1717020638954,-324.83851124,0.00026997,2]
[328183885,1717020638964,-4354.09441889,0.00026997,2]
[328183889,1717020641283,-221.74571048,0.00026997,2]
[328183890,1717020641294,-155.74396002,0.00026997,2]
[328183891,1717020641304,-212.64301334,0.00026997,2]
[328183892,1717020641314,-409.70150583,0.00026997,2]
[328183893,1717020641324,-155.0,0.00026997,2]
[328183894,1717020641334,-1315.81191176,0.00026997,2]
[328183895,1717020641345,-198.87803042,0.00026997,2]
[328183896,1717020641356,-281.74618343,0.00026997,2]
[328183897,1717020641365,-208.37659574,0.00026997,2]
[328183898,1717020641375,-1376.24495973,0.00026997,2]
[328183899,1717020641384,-170.67008826,0.00026997,2]
[328183900,1717020641393,-224.27254649,0.00026997,2]
[328183901,1717020641403,-155.91493806,0.00026997,2]
[328183902,1717020641412,-13541.38450603,0.00026997,2]
[328183903,1717020641421,-155.15326466,0.00026997,2]
[328183904,1717020641430,-155.0,0.00026997,2]
[328183905,1717020641439,-5190.83936008,0.00026997,2]
[328183906,1717020641448,-5045.12985729,0.00026997,2]
[328183907,1717020641457,-361.26021347,0.00026997,2]
[328183908,1717020641468,-231.56074243,0.00026999,2]
[328183909,1717020641477,-13449.73435933,0.00026999,2]
[328183910,1717020642359,-187941.44076342,0.00026999,2]
[328183911,1717020642370,-162.06324,0.00026999,7]
[328183912,1717020642379,-369967.04040004,0.00026999,11]
[328183913,1717020642390,-234127.05910795,0.00026999,11]
[328183914,1717020642401,-247954.5844891,0.00026999,11]
[328183915,1717020642410,-214.60592809,0.00027,2]
[328183916,1717020642419,-11022.09749057,0.00027,2]
[328183917,1717020642428,-118208.67872495,0.00027,2]
[328183919,1717020642590,-2229.8616526,0.00027,2]
[328183966,1717020643545,-10232.99565567,0.00027,2]
[328183967,1717020643555,-156.14741328,0.00027,4]
[328183968,1717020643564,-4019.70433189,0.00027,2]
[328183969,1717020643574,-215.46815451,0.00027,2]
[328183970,1717020643583,-1400.0,0.00027,2]
[328183971,1717020643592,-2000.0,0.00027,2]
[328183972,1717020643602,-151.0,0.00027,7]
[328183973,1717020643611,-3652.982164,0.0002701,2]
[328183974,1717020643620,-1290.10532683,0.00027022,2]
[328183975,1717020643632,-3868.38640652,0.00027022,2]
[328183976,1717020643641,-5158.49173335,0.00027065,2]
[328183977,1717020643651,-178.36678852,0.00027077,2]
[328183978,1717020643660,-154.45801998,0.00027084,2]
[328183979,1717020643669,-154.45801998,0.00027097,2]
[328183980,1717020643678,-3446.79,0.00027123,2]
[328183981,1717020643687,-264.60969472,0.00027125,2]
[328183982,1717020643697,-167.0,0.00027186,2]
[328183983,1717020643706,-17024.4042484,0.00027194,2]
[328183984,1717020643718,-3050.85729144,0.00027194,2]
[328183985,1717020643727,-151.0,0.00027195,7]
[328183986,1717020643736,-151.0,0.00027195,7]
[328183987,1717020643746,-151.0,0.00027195,7]
[328183988,1717020643756,-151.52872097,0.00027203,2]
[328183989,1717020643765,-154.45801998,0.00027216,2]
[328183990,1717020643774,-155.21531025,0.00027262,2]
[328183991,1717020643783,-151.0,0.00027272,7]
[328183992,1717020643793,-243.37243076,0.0002739,2]
[328183993,1717020643802,-228.026589,0.00027397,7]
[328183994,1717020643811,-228.026589,0.00027397,7]
[328183995,1717020643821,-228.026589,0.00027397,7]
[328183996,1717020643830,-228.026589,0.00027397,7]
[328183997,1717020643839,-228.026589,0.00027397,7]
[328183998,1717020643849,-228.026589,0.00027397,7]
[328183999,1717020643858,-150.0,0.000274,5]
[328184000,1717020643868,-667.42,0.000274,2]
[328184001,1717020643877,-667.42,0.000274,2]
[328184002,1717020643886,-277.78240149,0.000274,2]
[328184003,1717020643897,-389.63759851,0.000274,2]
[328184004,1717020643906,-157.95576516,0.000274,2]
[328184005,1717020643933,-306.856,0.000274,2]
[328184006,1717020643947,-202.60823484,0.000274,2]
[328184007,1717020643958,-412.44094908,0.000274,2]
[328184008,1717020643974,-254.97905092,0.000274,2]
[328184009,1717020643983,-667.42,0.000274,2]
[328184010,1717020643995,-667.42,0.000274,2]
[328184011,1717020644003,-667.42,0.000274,2]
[328184012,1717020644013,-667.42,0.000274,2]
[328184013,1717020644022,-184.57658925,0.0002741,2]
[328184014,1717020644032,-152.94404478,0.00027436,2]
[328184015,1717020644042,-165.40585946,0.00027446,2]
[328184016,1717020644051,-152.94404478,0.00027453,2]
[328184017,1717020644061,-156.29987148,0.00027514,2]
[328184018,1717020644070,-169.36934527,0.00027549,2]
[328184019,1717020644079,-165.40585946,0.0002755,2]
[328184020,1717020644088,-335.22151874,0.00027577,2]
[328184021,1717020644098,-154.45801998,0.00027596,2]
[328184022,1717020644107,-184.57658926,0.00027608,2]
[328184023,1717020644116,-166.66666667,0.00027619,2]
[328184024,1717020644125,-840.0,0.00027625,2]
[328184025,1717020644135,-4546.38317684,0.00027638,2]
[328184026,1717020644144,-154.45801998,0.0002767,2]
[328184027,1717020644153,-159.25974205,0.00027687,2]
[328184028,1717020644162,-264.60969472,0.00027738,2]
[328184029,1717020644171,-20075.26153984,0.00027739,2]
[328184030,1717020644180,-165.40585946,0.00027795,2]
[328184031,1717020644191,-151.52872097,0.00027818,2]
[328184032,1717020644200,-131.61178367,0.000279,5]
[328184042,1717020646291,-662.96111322,0.00015,2]
[328184043,1717020646301,-199.63888878,0.00026998,2]
[328184044,1717020646312,-187.99563896,0.00026998,2]
[328184045,1717020646322,-955.09,0.00027397,10]
[328184046,1717020646331,-18.38821633,0.000279,5]
[328184047,1717020646340,-168.33685354,0.00027919,2]
[328184048,1717020646350,-5158.49173335,0.00027919,2]
[328184049,1717020646361,-3579.69755782,0.00028,2]
[328184050,1717020646442,-471.53118564,0.00026997,2]
[328184051,1717020646452,-10426.73244218,0.00028,2]
[328184052,1717020646462,-233.3765502,0.00028,2]
[328184053,1717020646473,-48.35982198,0.00028,2]
[328184054,1717020646485,-604.39108268,0.00028,2]
[328184055,1717020646495,-4546.38317682,0.00028004,2]
[328184056,1717020646505,-167.0,0.00028054,2]
[328184057,1717020646515,-151.52872097,0.00028059,2]
[328184058,1717020646524,-264.60969472,0.00028083,2]
[328184059,1717020646533,-1043.18,0.00028156,2]
[328184060,1717020646543,-524.95,0.00028156,2]
[328184061,1717020646552,-524.95,0.00028156,2]
[328184062,1717020646562,-5158.49173335,0.00028169,2]
[328184063,1717020646571,-335.22151874,0.00028191,2]
[328184064,1717020646580,-2653.16427504,0.000282,2]
[328184065,1717020646589,-3473.89638603,0.00028201,2]
[328184066,1717020646613,-1684.59534732,0.00028201,2]
[328184067,1717020646622,-667.42,0.00028273,2]
[328184068,1717020646631,-154.45801998,0.00028275,2]
[328184069,1717020646640,-533.99734936,0.00028283,2]
[328184108,1717021833404,-300.6296171,0.00013954,2]
[328184109,1717021833415,-102.64404371,0.00013954,2]
[328184110,1717021833424,-155.0,0.00013955,2]
[328184111,1717021833433,-150.74,0.00013973,2]
[328184112,1717021833443,-162.56,0.00013973,2]
[328184113,1717021833452,-426.92838969,0.00017259,2]
[328184114,1717021833585,-801.78370801,0.00017259,2]
[328184115,1717021833594,-410.89835827,0.00019451,2]
[328184116,1717021833603,-181.77,0.00019452,2]
[328184117,1717021833612,-155.0,0.00020999,2]
[328184118,1717021833621,-1042.86378372,0.00021,2]
[328184119,1717021833632,-207.13621628,0.00021,2]
[328184120,1717021833642,-150.74,0.00021209,2]
[328184121,1717021833650,-284.52152492,0.00021765,2]
[328184122,1717021833662,-221.17847508,0.00021765,2]
[328184123,1717021833671,-178.57,0.00021918,2]
[328184124,1717021833680,-1300.0,0.00023,2]
[328184125,1717021833690,-2007.4407583,0.000234,2]
[328184126,1717021833699,-500.0,0.00023591,2]
[328184127,1717021833708,-196.27,0.0002361,2]
[328184128,1717021833717,-2000.0,0.00023622,2]
[328184129,1717021833726,-540.32,0.00023629,2]
[328184130,1717021833734,-250.0,0.00023653,2]
[328184131,1717021833744,-600.29,0.00023672,2]
[328184133,1717021833753,-160.0,0.00023677,2]
[328184135,1717021833764,-200.0,0.00023709,2]
[328184137,1717021833774,-250.0,0.00023909,2]
[328184139,1717021833783,-433.64425027,0.00024028,2]
[328184140,1717021833793,-505.7,0.00024029,2]
[328184141,1717021833802,-291.31,0.00024266,2]
[328184142,1717021833811,-291.31,0.00024273,2]
[328184143,1717021833820,-291.31,0.00024279,2]
[328184144,1717021833829,-291.31,0.00024286,2]
[328184145,1717021833838,-291.31,0.00024292,2]
[328184146,1717021833847,-291.31,0.00024298,2]
[328184147,1717021833856,-291.31,0.00024305,2]
[328184148,1717021833865,-904.0,0.00024306,2]
[328184149,1717021833874,-291.31,0.00024311,2]
[328184150,1717021833884,-291.31,0.00024317,2]
[328184151,1717021833893,-291.31,0.00024324,2]
[328184153,1717021833902,-291.31,0.0002433,2]
[328184154,1717021833911,-291.31,0.00024337,2]
[328184156,1717021833920,-291.31,0.00024343,2]
[328184158,1717021833928,-291.31,0.00024349,2]
[328184160,1717021833938,-291.31,0.00024356,2]
[328184162,1717021833947,-291.31,0.00024362,2]
[328184164,1717021833956,-291.31,0.00024369,2]
[328184166,1717021833965,-291.31,0.00024375,2]
[328184168,1717021833974,-291.31,0.00024381,2]
[328184170,1717021833984,-291.31,0.00024388,2]
[328184172,1717021833993,-167.0,0.00024507,2]
[328184174,1717021834002,-150.0,0.00024759,2]
[328184176,1717021834013,-201.51960871,0.00024854,2]
[328184178,1717021834023,-155.36105778,0.00024854,2]
[328184180,1717021834032,-151.7398263,0.00024893,2]
[328184182,1717021834041,-157.35204194,0.00024935,2]
[328184184,1717021834050,-3267.04476445,0.00024994,2]
[328184186,1717021834059,-1350.0,0.00025,2]
[328184188,1717021834069,-1273.77105689,0.00025008,2]
[328184190,1717021834079,-3267.04476445,0.00025009,2]
[328184192,1717021834088,-3267.04476445,0.00025048,2]
[328184194,1717021834097,-157.35204194,0.00025205,2]
[328184196,1717021834107,-473.65,0.00025205,2]
[328184197,1717021834116,-157.35204194,0.0002528,2]
[328184198,1717021834125,-157.35204194,0.00025328,2]
[328184199,1717021834134,-152.94404478,0.00025387,2]
[328184200,1717021834143,-312.94060557,0.00025609,2]
[328184201,1717021834152,-157.35204194,0.0002566,2]
[328184202,1717021834162,-3267.04476445,0.00025693,2]
[328184203,1717021834171,-154.49299365,0.00025794,2]
[328184204,1717021834180,-151.7398263,0.00025808,2]
[328184205,1717021834189,-152.94404478,0.00025846,2]
[328184206,1717021834199,-180.0,0.00025885,2]
[328184207,1717021834208,-201.51960871,0.00025895,2]
[328184208,1717021834217,-152.94404478,0.00025918,2]
[328184209,1717021834226,-500.0,0.00025928,2]
[328184210,1717021834235,-157.35204194,0.00025935,2]
[328184211,1717021834337,-3267.04476445,0.00025986,2]
[328184212,1717021834347,-1279.8243,0.00026,2]
[328184213,1717021834357,-3742.1812,0.00026,2]
[328184214,1717021834366,-20240.42894409,0.00026001,2]
[328184215,1717021834375,-1220.27380055,0.00026001,2]
[328184216,1717021834384,-4280.20785995,0.00026001,2]
[328184217,1717021834396,-157.35204194,0.00026019,2]
[328184218,1717021834405,-154.49299365,0.00026026,2]
[328184219,1717021834414,-150.0,0.00026054,2]
[328184220,1717021834423,-312.94060557,0.00026062,2]
[328184221,1717021834432,-201.51960871,0.00026062,2]
[328184222,1717021834441,-150.0,0.00026088,2]
[328184223,1717021834450,-201.51960871,0.00026099,2]
[328184224,1717021834459,-155.0,0.00026099,2]
[328184225,1717021834468,-266.56703532,0.00026099,2]
[328184226,1717021834477,-200.99816816,0.00026099,2]
[328184227,1717021834487,-195.42376414,0.00026099,2]
[328184228,1717021834496,-157.7887999,0.00026099,2]
[328184229,1717021834505,-407.83722133,0.000261,2]
[328184230,1717021834515,-4471.57622308,0.000261,2]
[328184231,1717021834524,-177742.29939001,0.000261,2]
[328184232,1717021834533,-6134.6194,0.00026101,2]
[328184233,1717021834542,-100000.0,0.00026101,2]
[328184234,1717021834551,-1000.0,0.00026101,2]
[328184235,1717021834560,-157.35204194,0.00026111,2]
[328184236,1717021834570,-1000.0,0.000262,2]
[328184237,1717021834578,-156.17927822,0.00026207,2]
[328184238,1717021834589,-505.7,0.00026293,2]
[328184239,1717021834598,-2654.0,0.000263,2]
[328184240,1717021834607,-201.51960871,0.00026344,2]
[328184241,1717021834617,-196.27,0.0002635,2]
[328184242,1717021834627,-312.94060557,0.00026351,2]
[328184243,1717021834636,-154.49299365,0.00026419,2]
[328184244,1717021834645,-312.94060557,0.00026425,2]
[328184245,1717021834655,-155.0,0.00026457,2]
[328184246,1717021834664,-3267.04476445,0.00026481,2]
[328184247,1717021834673,-166.66666666,0.00026513,2]
[328184248,1717021834683,-167.0,0.00026529,2]
[328184249,1717021834692,-15751.97130298,0.00026557,2]
[328184250,1717021834991,-4488.45764105,0.00026557,2]
[328184251,1717021835001,-2926.56851078,0.00026558,2]
[328184252,1717021835015,-1353.63934917,0.00026558,2]
[328184253,1717021835024,-154.49299365,0.00026601,2]
[328184254,1717021835033,-3267.04476445,0.00026621,2]
[328184255,1717021835042,-1802.39244304,0.00026647,2]
[328184256,1717021835053,-456.76620795,0.00026647,2]
[328184257,1717021835064,-850.0,0.00026647,2]
[328184258,1717021835074,-564.72049553,0.00026647,2]
[328184259,1717021835103,-1177.62085348,0.00026647,2]
[328184260,1717021835112,-301.80487712,0.00026701,2]
[328184261,1717021835203,-918.46892342,0.00026701,2]
[328184262,1717021835231,-154.49299365,0.00026759,2]
[328184263,1717021835241,-154.58102766,0.00026769,2]
[328184264,1717021835251,-156.05724993,0.00026774,2]
[328184265,1717021835263,-3267.04476445,0.00026852,2]
[328184266,1717021835273,-284.1218,0.00026897,2]
[328184267,1717021835282,-214.0,0.00026899,2]
[328184268,1717021835291,-170.72043757,0.00026909,2]
[328184269,1717021835300,-154.49299365,0.00026911,2]
[328184270,1717021835312,-188.26002361,0.00026936,2]
[328184271,1717021835323,-159.24869842,0.00026993,2]
[328184272,1717021835332,-1000.0,0.00026997,2]
[328184273,1717021835341,-738.35224519,0.00026997,2]
[328184274,1717021835351,-155.10728925,0.00026997,2]
[328184275,1717021835360,-214.60592809,0.00027,2]
[328184276,1717021835369,-4019.70433189,0.00027,2]
[328184277,1717021835378,-1400.0,0.00027,2]
[328184278,1717021835390,-342.90975169,0.00027059,2]
[328184279,1717021835399,-151.7398263,0.0002711,2]
[328184280,1717021835408,-20240.42894403,0.00027113,2]
[328184281,1717021835417,-2704.53061218,0.00027114,2]
[328184282,1717021835429,-1575.67724777,0.00027114,2]
[328184283,1717021835438,-184.5047889,0.00027159,2]
[328184284,1717021835447,-312.94060557,0.00027171,2]
[328184285,1717021835456,-200.0,0.00027174,2]
[328184286,1717021835465,-500.0,0.00027174,2]
[328184287,1717021835474,-200.0,0.00027174,2]
[328184288,1717021835483,-151.7398263,0.00027177,2]
[328184289,1717021835492,-201.51960871,0.00027186,2]
[328184290,1717021835502,-3267.04476445,0.00027239,2]
[328184291,1717021835513,-3267.04476445,0.00027278,2]
[328184292,1717021835522,-524.95,0.00027334,2]
[328184293,1717021835531,-524.95,0.00027334,2]
[328184294,1717021835540,-524.95,0.00027334,2]
[328184295,1717021835550,-904.0,0.00027344,2]
[328184296,1717021835559,-201.51960871,0.00027389,2]
[328184297,1717021835568,-813.03672237,0.0002739,2]
[328184298,1717021835578,-795.91,0.00027397,10]
[328184299,1717021835587,-663.26,0.00027397,10]
[328184300,1717021835596,-552.71,0.00027397,10]
[328184301,1717021835605,-167.31,0.000274,2]
[328184302,1717021835614,-1220.27380054,0.00027401,2]
[328184303,1717021835623,-2720.14473028,0.00027415,2]
[328184304,1717021835635,-546.90003417,0.00027415,2]
[328184305,1717021835644,-160.107484,0.00027422,2]
[328184306,1717021835653,-153.2059024,0.00027441,2]
[328184307,1717021835662,-75.04472207,0.00027488,2]
[328184308,1717021835673,-76.69510423,0.00027488,2]
[328184309,1717021835682,-152.94404478,0.00027495,2]
[328184310,1717021835691,-156.05724993,0.00027501,2]
[328184311,1717021835700,-166.66666666,0.00027532,2]
[328184312,1717021835710,-151.7398263,0.00027535,2]
[328184313,1717021835719,-150.0,0.00027599,2]
[328184314,1717021835729,-1000.0,0.000276,2]
[328184315,1717021835738,-157.35204194,0.00027605,2]
[328184316,1717021835747,-154.58102767,0.00027625,2]
[328184317,1717021835757,-312.94060557,0.00027667,2]
[328184318,1717021835768,-3762.34362748,0.00027669,2]
[328184319,1717021835785,-397.56791311,0.00027669,2]
[328184320,1717021835808,-9050.3498805,0.00027669,2]
[328184321,1717021837738,-1510.06177508,0.00027669,2]
[328184322,1717021837750,-5520.10574786,0.00027669,2]
[328184323,1717021837759,-4280.20785995,0.00027671,2]
[328184324,1717021837771,-201.51960871,0.00027739,2]
[328184325,1717021837780,-154.49299365,0.00027763,2]
[328184326,1717021837790,-155.36105778,0.00027833,2]
[328184327,1717021837799,-157.35204194,0.00027856,2]
[328184328,1717021837808,-167.31,0.00027908,2]
[328184329,1717021837818,-155.0,0.00027917,2]
[328184330,1717021837827,-12762.29726461,0.00027918,5]
[328184331,1717021837836,-154.49299365,0.00027942,2]
[328184332,1717021837846,-3267.04476445,0.00027942,2]
[328184333,1717021837855,-416.3,0.00027959,2]
[328184334,1717021837864,-416.3,0.00027959,2]
[328184335,1717021837873,-416.3,0.00027959,2]
[328184336,1717021837883,-3267.04476445,0.00027963,2]